fUSD/lending_fUSD_20250708
["ID","MTS","AMOUNT","RATE_DAILY","PERIOD"]
[370394123,1751993445354,-644.25,0.00024657,2]
[370394124,1751993445363,-460.0,0.00024657,2]
[370394125,1751993445372,-460.0,0.00024657,2]
[370394126,1751993445381,-460.0,0.00024657,2]
[370394127,1751993445391,-460.0,0.00024657,2]
[370394128,1751993445400,-460.0,0.00024657,2]
[370394129,1751993445409,-460.0,0.00024657,2]
[370394130,1751993445418,-460.0,0.00024657,2]
[370394131,1751993445427,-460.0,0.00024657,2]
[370394132,1751993445436,-460.0,0.00024657,2]
[370394133,1751993445445,-566.14,0.00024657,2]
[370394134,1751993445455,-460.0,0.00024657,2]
[370394135,1751993445464,-153.561335,0.00024657,2]
[370394136,1751993445473,-460.0,0.00024657,2]
[370394137,1751993445483,-460.0,0.00024657,2]
[370394138,1751993445494,-511.19,0.00024657,2]
[370394139,1751993445504,-460.0,0.00024657,2]
[370394140,1751993445514,-460.0,0.00024657,2]
[370394141,1751993445523,-460.0,0.00024657,2]
[370394142,1751993445532,-460.0,0.00024657,2]
[370394143,1751993445541,-460.0,0.00024657,2]
[370394144,1751993445551,-515.05,0.00024657,2]
[370394145,1751993445561,-460.0,0.00024657,2]
[370394146,1751993445569,-460.0,0.00024657,2]
[370394147,1751993445581,-460.0,0.00024657,2]
[370394148,1751993445590,-460.0,0.00024657,2]
[370394149,1751993445599,-747.79,0.00024657,2]
[370394150,1751993445609,-460.0,0.00024657,2]
[370394151,1751993445617,-460.0,0.00024657,2]
[370394152,1751993445846,-460.0,0.00024657,2]
[370394153,1751993445856,-460.0,0.00024657,2]
[370394154,1751993445865,-460.0,0.00024657,2]
[370394155,1751993445875,-460.0,0.00024657,2]
[370394156,1751993445884,-500.0,0.00024657,2]
[370394157,1751993445894,-460.0,0.00024657,2]
[370394158,1751993445904,-460.0,0.00024657,2]
[370394159,1751993445913,-860.91,0.00024657,2]
[370394160,1751993445922,-500.0,0.00024657,2]
[370394161,1751993445931,-460.0,0.00024657,2]
[370394162,1751993445941,-500.0,0.00024657,2]
[370394163,1751993445950,-500.0,0.00024657,2]
[370394165,1751993445959,-500.0,0.00024657,2]
[370394166,1751993445968,-460.0,0.00024657,2]
[370394167,1751993445977,-500.0,0.00024657,2]
[370394168,1751993445986,-460.0,0.00024657,2]
[370394169,1751993445995,-467.65,0.00024657,2]
[370394170,1751993446004,-460.0,0.00024657,2]
[370394171,1751993446014,-460.0,0.00024657,2]
[370394173,1751993446023,-460.0,0.00024657,2]
[370394175,1751993446034,-460.0,0.00024657,2]
[370394176,1751993446044,-460.0,0.00024657,2]
[370394178,1751993446053,-1073.85,0.00024657,2]
[370394180,1751993446062,-460.0,0.00024657,2]
[370394181,1751993446071,-555.41,0.00024657,2]
[370394182,1751993446081,-460.0,0.00024657,2]
[370394183,1751993446090,-460.0,0.00024657,2]
[370394184,1751993446100,-460.0,0.00024657,2]
[370394185,1751993446109,-460.0,0.00024657,2]
[370394186,1751993446118,-460.0,0.00024657,2]
[370394187,1751993446127,-460.0,0.00024657,2]
[370394188,1751993446137,-584.95,0.00024657,2]
[370394189,1751993446146,-671.28,0.00024657,2]
[370394190,1751993446155,-535.19,0.00024657,2]
[370394191,1751993446165,-474.5,0.00024657,2]
[370394192,1751993446174,-261.39335753,0.00024657,2]
[370394193,1751993446187,-716.05,0.00024657,2]
[370394194,1751993446197,-460.0,0.00024657,2]
[370394195,1751993446206,-460.0,0.00024657,2]
[370394196,1751993446216,-460.39,0.00024657,2]
[370394197,1751993446226,-153.561335,0.00024657,2]
[370394198,1751993446235,-460.0,0.00024657,2]
[370394199,1751993446245,-460.0,0.00024657,2]
[370394200,1751993446254,-513.53,0.00024657,2]
[370394201,1751993446266,-492.99,0.00024657,2]
[370394202,1751993446275,-460.0,0.00024657,2]
[370394203,1751993446286,-632.16,0.00024657,2]
[370394204,1751993446296,-1317.07,0.00024657,2]
[370394205,1751993446305,-460.0,0.00024657,2]
[370394206,1751993446315,-460.0,0.00024657,2]
[370394207,1751993446325,-460.0,0.00024657,2]
[370394208,1751993446335,-460.0,0.00024657,2]
[370394209,1751993446344,-460.0,0.00024657,2]
[370394210,1751993446355,-460.0,0.00024657,2]
[370394211,1751993446364,-460.0,0.00024657,2]
[370394212,1751993446374,-920.33,0.00024657,2]
[370394213,1751993446383,-460.0,0.00024657,2]
[370394214,1751993446393,-460.0,0.00024657,2]
[370394215,1751993446403,-460.0,0.00024657,2]
[370394216,1751993446412,-460.0,0.00024657,2]
[370394217,1751993446421,-460.0,0.00024657,2]
[370394218,1751993446431,-727.64,0.00024657,2]
[370394219,1751993446440,-460.0,0.00024657,2]
[370394220,1751993446450,-460.0,0.00024657,2]
[370394221,1751993446459,-580.54,0.00024657,2]
[370394222,1751993446469,-460.0,0.00024657,2]
[370394224,1751993446478,-460.0,0.00024657,2]
[370394226,1751993446488,-562.46,0.00024657,2]
[370394228,1751993446496,-1096.09,0.00024657,2]
[370394230,1751993446505,-293.27481257,0.00024657,2]
[370394232,1751993446515,-460.0,0.00024657,2]
[370394234,1751993446524,-460.0,0.00024657,2]
[370394236,1751993446534,-460.0,0.00024657,2]
[370394238,1751993446543,-460.0,0.00024657,2]
[370394240,1751993446552,-700.34,0.00024657,2]
[370394242,1751993446562,-500.0,0.00024657,2]
[370394244,1751993446571,-460.0,0.00024657,2]
[370394245,1751993446581,-460.0,0.00024657,2]
[370394246,1751993446590,-460.0,0.00024657,2]
[370394247,1751993446599,-620.15,0.00024657,2]
[370394248,1751993446608,-394.72933703,0.00024657,2]
[370394249,1751993446618,-460.0,0.00024657,2]
[370394250,1751993446627,-572.76,0.00024657,2]
[370394252,1751993446636,-684.96,0.00024657,2]
[370394253,1751993446645,-392.27243054,0.00024657,2]
[370394254,1751993446655,-460.0,0.00024657,2]
[370394255,1751993446664,-153.561335,0.00024657,2]
[370394256,1751993446673,-460.0,0.00024657,2]
[370394257,1751993446683,-460.0,0.00024657,2]
[370394258,1751993446691,-460.0,0.00024657,2]
[370394259,1751993446701,-545.71806494,0.00024657,2]
[370394260,1751993446711,-484.75,0.00024657,2]
[370394261,1751993446720,-669.6,0.00024657,2]
[370394262,1751993446729,-711.38,0.00024657,2]
[370394263,1751993446738,-460.0,0.00024657,2]
[370394264,1751993446748,-701.65,0.00024657,2]
[370394265,1751993446757,-467.45,0.00024657,2]
[370394266,1751993446766,-460.0,0.00024657,2]
[370394267,1751993446776,-460.0,0.00024657,2]
[370394268,1751993446786,-460.0,0.00024657,2]
[370394269,1751993446795,-460.0,0.00024657,2]
[370394270,1751993446804,-460.0,0.00024657,2]
[370394271,1751993446813,-460.0,0.00024657,2]
[370394272,1751993446823,-460.0,0.00024657,2]
[370394273,1751993446832,-460.0,0.00024657,2]
[370394274,1751993446841,-460.0,0.00024657,2]
[370394275,1751993446850,-963.21,0.00024657,2]
[370394276,1751993446859,-460.0,0.00024657,2]
[370394277,1751993446868,-460.0,0.00024657,2]
[370394278,1751993446877,-496.95,0.00024657,2]
[370394279,1751993446886,-460.0,0.00024657,2]
[370394280,1751993446895,-705.74,0.00024657,2]
[370394281,1751993446905,-460.0,0.00024657,2]
[370394282,1751993446914,-460.0,0.00024657,2]
[370394283,1751993446923,-554.13,0.00024657,2]
[370394285,1751993446932,-511.22,0.00024657,2]
[370394286,1751993446942,-460.0,0.00024657,2]
[370394288,1751993446951,-289.47,0.00024657,2]
[370394290,1751993446960,-460.0,0.00024657,2]
[370394292,1751993446970,-460.0,0.00024657,2]
[370394294,1751993446979,-460.0,0.00024657,2]
[370394296,1751993446988,-460.0,0.00024657,2]
[370394298,1751993446997,-659.51,0.00024657,2]
[370394300,1751993447006,-234.28596672,0.00024657,2]
[370394302,1751993447015,-460.0,0.00024657,2]
[370394304,1751993447024,-460.0,0.00024657,2]
[370394306,1751993447035,-460.0,0.00024657,2]
[370394308,1751993447044,-460.0,0.00024657,2]
[370394310,1751993447053,-622.0,0.00024657,2]
[370394312,1751993447062,-706.29,0.00024657,2]
[370394314,1751993447071,-614.05,0.00024657,2]
[370394316,1751993447080,-460.0,0.00024657,2]
[370394318,1751993447090,-460.0,0.00024657,2]
[370394320,1751993447099,-648.95,0.00024657,2]
[370394322,1751993447109,-555.83,0.00024657,2]
[370394324,1751993447118,-460.0,0.00024657,2]
[370394326,1751993447127,-460.0,0.00024657,2]
[370394328,1751993447137,-519.68,0.00024657,2]
[370394330,1751993447146,-460.0,0.00024657,2]
[370394332,1751993447155,-152.215828,0.00024657,2]
[370394334,1751993447165,-460.0,0.00024657,2]
[370394336,1751993447175,-460.0,0.00024657,2]
[370394338,1751993447190,-634.35,0.00024657,2]
[370394340,1751993447199,-157.593787,0.00024657,2]
[370394342,1751993447208,-596.1,0.00024657,2]
[370394344,1751993447218,-274.07589327,0.00024657,2]
[370394346,1751993447230,-460.0,0.00024657,2]
[370394348,1751993447239,-460.0,0.00024657,2]
[370394350,1751993447249,-618.33,0.00024657,2]
[370394352,1751993447260,-460.0,0.00024657,2]
[370394354,1751993447271,-460.0,0.00024657,2]
[370394356,1751993447282,-460.0,0.00024657,2]
[370394358,1751993447293,-460.0,0.00024657,2]
[370394360,1751993447303,-460.0,0.00024657,2]
[370394362,1751993447313,-547.04,0.00024657,2]
[370394364,1751993447322,-460.0,0.00024657,2]
[370394366,1751993447333,-460.0,0.00024657,2]
[370394368,1751993447342,-460.0,0.00024657,2]
[370394370,1751993447352,-460.0,0.00024657,2]
[370394372,1751993447361,-460.0,0.00024657,2]
[370394374,1751993447371,-235.23028524,0.00024657,2]
[370394376,1751993447380,-460.0,0.00024657,2]
[370394378,1751993447389,-460.0,0.00024657,2]
[370394380,1751993447399,-460.0,0.00024657,2]
[370394382,1751993447409,-460.0,0.00024657,2]
[370394384,1751993447419,-565.74175225,0.00024657,2]
[370394386,1751993447428,-460.0,0.00024657,2]
[370394387,1751993447438,-460.0,0.00024657,2]
[370394389,1751993447447,-562.88,0.00024657,2]
[370394391,1751993447456,-623.44,0.00024657,2]
[370394393,1751993447466,-520.41,0.00024657,2]
[370394395,1751993447475,-460.0,0.00024657,2]
[370394397,1751993447485,-460.0,0.00024657,2]
[370394399,1751993447494,-460.0,0.00024657,2]
[370394401,1751993447503,-525.99478469,0.00024657,2]
[370394403,1751993447513,-505.04,0.00024657,2]
[370394405,1751993447523,-823.78,0.00024657,2]
[370394407,1751993447532,-532.19,0.00024657,2]
[370394409,1751993447542,-460.0,0.00024657,2]
[370394411,1751993447551,-460.0,0.00024657,2]
[370394413,1751993447561,-546.7,0.00024657,2]
[370394415,1751993447570,-460.0,0.00024657,2]
[370394417,1751993447580,-513.68,0.00024657,2]
[370394419,1751993447589,-460.0,0.00024657,2]
[370394421,1751993447599,-460.0,0.00024657,2]
[370394423,1751993447609,-446.89695357,0.00024657,2]
[370394425,1751993447619,-460.0,0.00024657,2]
[370394427,1751993447628,-460.0,0.00024657,2]
[370394429,1751993447639,-460.0,0.00024657,2]
[370394431,1751993447648,-460.0,0.00024657,2]
[370394433,1751993447657,-460.0,0.00024657,2]
[370394435,1751993447667,-460.0,0.00024657,2]
[370394437,1751993447676,-460.0,0.00024657,2]
[370394439,1751993447685,-574.05,0.00024657,2]
[370394441,1751993447695,-1469.2,0.00024657,2]
[370394443,1751993447704,-460.0,0.00024657,2]
[370394445,1751993447714,-460.0,0.00024657,2]
[370394447,1751993447723,-460.0,0.00024657,2]
[370394449,1751993447733,-460.0,0.00024657,2]
[370394451,1751993447743,-1240.65,0.00024657,2]
[370394453,1751993447752,-500.0,0.00024657,2]
[370394455,1751993447763,-500.0,0.00024657,2]
[370394457,1751993447774,-500.0,0.00024657,2]
[370394459,1751993447784,-505.29,0.00024657,2]
[370394461,1751993447794,-460.0,0.00024657,2]
[370394463,1751993447803,-500.0,0.00024657,2]
[370394465,1751993447812,-460.0,0.00024657,2]
[370394467,1751993447821,-460.0,0.00024657,2]
[370394469,1751993447831,-460.0,0.00024657,2]
[370394471,1751993447840,-618.64,0.00024657,2]
[370394473,1751993447849,-709.58,0.00024657,2]
[370394475,1751993447858,-489.87,0.00024657,2]
[370394477,1751993447867,-460.0,0.00024657,2]
[370394479,1751993447876,-460.0,0.00024657,2]
[370394481,1751993447885,-460.0,0.00024657,2]
[370394483,1751993447894,-460.0,0.00024657,2]
[370394485,1751993447904,-481.41,0.00024657,2]
[370394487,1751993447913,-354.8,0.00024657,2]
[370394489,1751993447923,-460.0,0.00024657,2]
[370394491,1751993447932,-460.0,0.00024657,2]
[370394493,1751993447941,-460.0,0.00024657,2]
[370394495,1751993447950,-460.0,0.00024657,2]
[370394497,1751993447960,-460.0,0.00024657,2]
[370394499,1751993447969,-1335.13,0.00024657,2]
[370394501,1751993447978,-460.0,0.00024657,2]
[370394503,1751993447987,-460.0,0.00024657,2]
[370394505,1751993447996,-509.54,0.00024657,2]
[370394507,1751993448006,-460.0,0.00024657,2]
[370394509,1751993448015,-679.45,0.00024657,2]
[370394511,1751993448024,-505.68,0.00024657,2]
[370394513,1751993448034,-460.0,0.00024657,2]
[370394515,1751993448045,-739.35,0.00024657,2]
[370394517,1751993448054,-485.71,0.00024657,2]
[370394519,1751993448064,-963.2,0.00024657,2]
[370394521,1751993448073,-973.64,0.00024657,2]
[370394523,1751993448082,-460.0,0.00024657,2]
[370394525,1751993448092,-460.0,0.00024657,2]
[370394527,1751993448101,-571.43,0.00024657,2]
[370394529,1751993448111,-1183.64,0.00024657,2]
[370394531,1751993448121,-460.0,0.00024657,2]
[370394533,1751993448131,-460.0,0.00024657,2]
[370394535,1751993448140,-460.0,0.00024657,2]
[370394537,1751993448149,-1463.85,0.00024657,2]
[370394539,1751993448159,-460.0,0.00024657,2]
[370394541,1751993448169,-1144.45,0.00024657,2]
[370394543,1751993448180,-460.0,0.00024657,2]
[370394545,1751993448191,-559.99,0.00024657,2]
[370394547,1751993448200,-460.0,0.00024657,2]
[370394549,1751993448210,-795.74,0.00024657,2]
[370394551,1751993448220,-460.0,0.00024657,2]
[370394553,1751993448231,-460.0,0.00024657,2]
[370394555,1751993448241,-460.0,0.00024657,2]
[370394557,1751993448252,-569.06,0.00024657,2]
[370394559,1751993448262,-1500.0,0.00024657,2]
[370394561,1751993448271,-460.0,0.00024657,2]
[370394563,1751993448281,-1429.23,0.00024657,2]
[370394565,1751993448291,-460.0,0.00024657,2]
[370394567,1751993448301,-1734.24,0.00024657,2]
[370394568,1751993448311,-849.47,0.00024657,2]
[370394569,1751993448320,-621.93,0.00024657,2]
[370394570,1751993448331,-460.0,0.00024657,2]
[370394572,1751993448340,-798.05,0.00024657,2]
[370394574,1751993448350,-902.7,0.00024657,2]
[370394576,1751993448360,-460.0,0.00024657,2]
[370394578,1751993448369,-460.0,0.00024657,2]
[370394580,1751993448379,-711.13,0.00024657,2]
[370394582,1751993448389,-460.0,0.00024657,2]
[370394584,1751993448399,-1913.04,0.00024657,2]
[370394586,1751993448409,-153.561335,0.00024657,2]
[370394588,1751993448418,-1575.05,0.00024657,2]
[370394590,1751993448428,-460.0,0.00024657,2]
[370394592,1751993448438,-470.1,0.00024657,2]
[370394594,1751993448450,-460.0,0.00024657,2]
[370394596,1751993448460,-460.0,0.00024657,2]
[370394598,1751993448470,-460.0,0.00024657,2]
[370394600,1751993448480,-460.0,0.00024657,2]
[370394602,1751993448490,-460.0,0.00024657,2]
[370394604,1751993448499,-460.0,0.00024657,2]
[370394606,1751993448509,-460.0,0.00024657,2]
[370394608,1751993448518,-460.0,0.00024657,2]
[370394610,1751993448528,-460.0,0.00024657,2]
[370394612,1751993448538,-460.0,0.00024657,2]
[370394614,1751993448548,-460.0,0.00024657,2]
[370394616,1751993448557,-460.0,0.00024657,2]
[370394618,1751993448567,-460.0,0.00024657,2]
[370394620,1751993448577,-2113.05,0.00024657,2]
[370394622,1751993448586,-460.0,0.00024657,2]
[370394624,1751993448595,-460.0,0.00024657,2]
[370394626,1751993448605,-300.0,0.00024657,2]
[370394628,1751993448615,-555.59076786,0.00024657,2]
[370394630,1751993448624,-460.0,0.00024657,2]
[370394632,1751993448634,-1205.97,0.00024657,2]
[370394634,1751993448643,-460.0,0.00024657,2]
[370394636,1751993448652,-475.54,0.00024657,2]
[370394638,1751993448662,-460.0,0.00024657,2]
[370394640,1751993448671,-609.71,0.00024657,2]
[370394642,1751993448680,-460.0,0.00024657,2]
[370394644,1751993448690,-1415.91,0.00024657,2]
[370394646,1751993448699,-460.0,0.00024657,2]
[370394648,1751993448709,-1535.45,0.00024657,2]
[370394650,1751993448719,-460.0,0.00024657,2]
[370394652,1751993448729,-590.27526524,0.00024657,2]
[370394654,1751993448739,-460.0,0.00024657,2]
[370394656,1751993448748,-460.0,0.00024657,2]
[370394658,1751993448758,-460.0,0.00024657,2]
[370394660,1751993448768,-460.0,0.00024657,2]
[370394662,1751993448777,-651.66,0.00024657,2]
[370394664,1751993448787,-460.0,0.00024657,2]
[370394666,1751993448797,-464.59,0.00024657,2]
[370394668,1751993448807,-460.0,0.00024657,2]
[370394670,1751993448816,-460.0,0.00024657,2]
[370394672,1751993448827,-342.91421027,0.00024657,2]
[370394674,1751993448836,-1712.53,0.00024657,2]
[370394676,1751993448845,-460.0,0.00024657,2]
[370394678,1751993448856,-460.0,0.00024657,2]
[370394680,1751993448866,-460.0,0.00024657,2]
[370394682,1751993448875,-1400.0,0.00024657,2]
[370394684,1751993448884,-529.52,0.00024657,2]
[370394686,1751993448894,-465.84,0.00024657,2]
[370394688,1751993448903,-640.79,0.00024657,2]
[370394690,1751993448912,-460.0,0.00024657,2]
[370394692,1751993448922,-463.74,0.00024657,2]
[370394694,1751993448932,-460.0,0.00024657,2]
[370394696,1751993448941,-460.0,0.00024657,2]
[370394698,1751993448950,-460.0,0.00024657,2]
[370394700,1751993448959,-461.88,0.00024657,2]
[370394702,1751993448969,-538.36,0.00024657,2]
[370394705,1751993448979,-460.0,0.00024657,2]
[370394706,1751993448988,-460.0,0.00024657,2]
[370394708,1751993448998,-460.0,0.00024657,2]
[370394710,1751993449007,-460.0,0.00024657,2]
[370394712,1751993449016,-460.0,0.00024657,2]
[370394714,1751993449025,-628.18,0.00024657,2]
[370394716,1751993449035,-460.0,0.00024657,2]
[370394718,1751993449044,-460.0,0.00024657,2]
[370394720,1751993449054,-828.56,0.00024657,2]
[370394722,1751993449064,-460.0,0.00024657,2]
[370394724,1751993449073,-500.0,0.00024657,2]
[370394726,1751993449082,-572.39,0.00024657,2]
[370394729,1751993449092,-460.0,0.00024657,2]
[370394730,1751993449101,-460.0,0.00024657,2]
[370394733,1751993449111,-460.0,0.00024657,2]
[370394735,1751993449121,-541.78,0.00024657,2]
[370394736,1751993449131,-460.0,0.00024657,2]
[370394739,1751993449140,-579.43,0.00024657,2]
[370394741,1751993449150,-460.0,0.00024657,2]
[370394742,1751993449160,-1583.62,0.00024657,2]
[370394744,1751993449169,-460.0,0.00024657,2]
[370394746,1751993449179,-717.35,0.00024657,2]
[370394748,1751993449190,-1115.26,0.00024657,2]
[370394750,1751993449200,-552.02,0.00024657,2]
[370394752,1751993449209,-460.0,0.00024657,2]
[370394754,1751993449219,-1441.53,0.00024657,2]
[370394757,1751993449230,-460.0,0.00024657,2]
[370394759,1751993449241,-460.0,0.00024657,2]
[370394761,1751993449250,-864.19,0.00024657,2]
[370394763,1751993449260,-153.561335,0.00024657,2]
[370394764,1751993449271,-460.0,0.00024657,2]
[370394765,1751993449285,-460.0,0.00024657,2]
[370394766,1751993449512,-1342.87,0.00024657,2]
[370394767,1751993449524,-460.0,0.00024657,2]
[370394768,1751993449534,-557.67,0.00024657,2]
[370394769,1751993449543,-1498.0,0.00024657,2]
[370394770,1751993449553,-460.0,0.00024657,2]
[370394771,1751993449562,-460.0,0.00024657,2]
[370394772,1751993449572,-607.76,0.00024657,2]
[370394773,1751993449582,-460.0,0.00024657,2]
[370394774,1751993449592,-1568.47,0.00024657,2]
[370394775,1751993449601,-1733.66,0.00024657,2]
[370394776,1751993449611,-960.66,0.00024657,2]
[370394777,1751993449621,-462.09,0.00024657,2]
[370394778,1751993449631,-460.0,0.00024657,2]
[370394779,1751993449641,-460.0,0.00024657,2]
[370394780,1751993449650,-494.12,0.00024657,2]
[370394781,1751993449659,-464.34,0.00024657,2]
[370394782,1751993449669,-258.80073375,0.00024657,2]
[370394783,1751993449678,-460.0,0.00024657,2]
[370394784,1751993449687,-460.0,0.00024657,2]
[370394785,1751993449697,-460.0,0.00024657,2]
[370394786,1751993449706,-460.0,0.00024657,2]
[370394787,1751993449716,-460.0,0.00024657,2]
[370394788,1751993449725,-460.0,0.00024657,2]
[370394789,1751993449735,-500.0,0.00024657,2]
[370394790,1751993449744,-460.0,0.00024657,2]
[370394791,1751993449754,-460.0,0.00024657,2]
[370394792,1751993449764,-500.0,0.00024657,2]
[370394793,1751993449773,-540.75,0.00024657,2]
[370394794,1751993449782,-500.0,0.00024657,2]
[370394795,1751993449792,-460.0,0.00024657,2]
[370394796,1751993449802,-460.0,0.00024657,2]
[370394797,1751993449811,-246.28,0.00024657,2]
[370394798,1751993449822,-496.30944668,0.00024657,2]
[370394799,1751993449832,-460.0,0.00024657,2]
[370394800,1751993449842,-657.58,0.00024657,2]
[370394801,1751993449851,-460.0,0.00024657,2]
[370394802,1751993449860,-460.0,0.00024657,2]
[370394803,1751993449870,-460.0,0.00024657,2]
[370394804,1751993449879,-460.0,0.00024657,2]
[370394805,1751993449890,-513.22,0.00024657,2]
[370394806,1751993449900,-460.0,0.00024657,2]
[370394807,1751993449909,-460.0,0.00024657,2]
[370394808,1751993449918,-1786.46,0.00024657,2]
[370394809,1751993449927,-1573.65,0.00024657,2]
[370394810,1751993449937,-460.0,0.00024657,2]
[370394811,1751993449946,-1942.25,0.00024657,2]
[370394812,1751993449956,-494.66,0.00024657,2]
[370394813,1751993449967,-1870.22,0.00024657,2]
[370394814,1751993449976,-500.0,0.00024657,2]
[370394815,1751993449987,-460.0,0.00024657,2]
[370394816,1751993449997,-202.0646669,0.00024657,2]
[370394817,1751993450006,-210.42967381,0.00024657,2]
[370394818,1751993450016,-460.0,0.00024657,2]
[370394819,1751993450025,-605.58,0.00024657,2]
[370394820,1751993450035,-460.0,0.00024657,2]
[370394821,1751993450045,-460.0,0.00024657,2]
[370394822,1751993450054,-641.78,0.00024657,2]
[370394823,1751993450063,-460.0,0.00024657,2]
[370394824,1751993450072,-460.0,0.00024657,2]
[370394825,1751993450081,-460.0,0.00024657,2]
[370394826,1751993450091,-1007.77,0.00024657,2]
[370394827,1751993450101,-460.0,0.00024657,2]
[370394828,1751993450111,-460.0,0.00024657,2]
[370394829,1751993450121,-296.06340508,0.00024657,2]
[370394830,1751993450130,-460.0,0.00024657,2]
[370394831,1751993450139,-2105.91,0.00024657,2]
[370394832,1751993450149,-788.39,0.00024657,2]
[370394833,1751993450158,-927.72,0.00024657,2]
[370394834,1751993450168,-2209.41,0.00024657,2]
[370394835,1751993450177,-593.19,0.00024657,2]
[370394836,1751993450190,-460.0,0.00024657,2]
[370394837,1751993450199,-460.0,0.00024657,2]
[370394838,1751993450208,-502.83,0.00024657,2]
[370394839,1751993450218,-460.0,0.00024657,2]
[370394840,1751993450229,-460.0,0.00024657,2]
[370394841,1751993450238,-805.61,0.00024657,2]
[370394842,1751993450247,-474.56,0.00024657,2]
[370394843,1751993450257,-460.0,0.00024657,2]
[370394844,1751993450268,-465.53,0.00024657,2]
[370394845,1751993450278,-460.0,0.00024657,2]
[370394846,1751993450289,-680.62,0.00024657,2]
[370394847,1751993450298,-460.0,0.00024657,2]
[370394848,1751993450308,-460.0,0.00024657,2]
[370394849,1751993450317,-460.0,0.00024657,2]
[370394850,1751993450326,-460.0,0.00024657,2]
[370394851,1751993450336,-1271.18,0.00024657,2]
[370394852,1751993450346,-460.0,0.00024657,2]
[370394853,1751993450356,-672.01,0.00024657,2]
[370394854,1751993450366,-460.0,0.00024657,2]
[370394855,1751993450375,-1216.77,0.00024657,2]
[370394856,1751993450385,-393.38527255,0.00024657,2]
[370394857,1751993450395,-460.0,0.00024657,2]
[370394858,1751993450406,-1784.17,0.00024657,2]
[370394859,1751993450415,-460.0,0.00024657,2]
[370394860,1751993450424,-460.0,0.00024657,2]
[370394861,1751993450434,-566.13,0.00024657,2]
[370394862,1751993450443,-153.561335,0.00024657,2]
[370394863,1751993450454,-647.3,0.00024657,2]
[370394864,1751993450463,-460.0,0.00024657,2]
[370394865,1751993450473,-460.0,0.00024657,2]
[370394866,1751993450482,-470.0,0.00024657,2]
[370394867,1751993450491,-460.0,0.00024657,2]
[370394868,1751993450500,-460.0,0.00024657,2]
[370394869,1751993450510,-460.0,0.00024657,2]
[370394870,1751993450519,-1390.84,0.00024657,2]
[370394871,1751993450529,-1279.43,0.00024657,2]
[370394872,1751993450540,-460.0,0.00024657,2]
[370394873,1751993450549,-460.0,0.00024657,2]
[370394874,1751993450559,-460.0,0.00024657,2]
[370394875,1751993450568,-460.0,0.00024657,2]
[370394876,1751993450577,-460.0,0.00024657,2]
[370394877,1751993450586,-460.0,0.00024657,2]